[Event "Early-Titled-Tuesday-Blitz-September-26-2023"]
[Site "Chess.com"]
[Date "2023.09.26"]
[Round "4"]
[White "Gyulamiryan-koryun"]
[Black "wild3000"]
[Result "0-1"]
[WhiteElo "1984"]
[BlackElo "2315"]
[TimeControl "180+1"]
[EndTime "8:39:08 PDT"]
[Termination "wild3000 won on time"]

1. Nf3 {[%clk 0:02:56.6]} 1... d5 {[%clk 0:02:59.9]} 2. d3 {[%clk 0:02:53.7]}
2... e6 {[%clk 0:03:00.4]} 3. g3 {[%clk 0:02:53.1]} 3... Be7 {[%clk 0:03:00.8]}
4. Bg2 {[%clk 0:02:53.5]} 4... Nf6 {[%clk 0:03:01.2]} 5. Nbd2 {[%clk 0:02:53.3]}
5... O-O {[%clk 0:03:01.8]} 6. O-O {[%clk 0:02:53.4]} 6... b6 {[%clk 0:03:02.4]}
7. c4 {[%clk 0:02:53.2]} 7... Bb7 {[%clk 0:03:02.8]} 8. a3 {[%clk 0:02:42.9]}
8... c5 {[%clk 0:03:02.3]} 9. Rb1 {[%clk 0:02:40.7]} 9... Nc6 {[%clk 0:03:01.9]}
10. e3 {[%clk 0:02:33.3]} 10... dxc4 {[%clk 0:02:59.5]} 11. Nxc4 {[%clk
0:02:31.9]} 11... Qc7 {[%clk 0:02:57.1]} 12. e4 {[%clk 0:02:25.3]} 12... Rfd8
{[%clk 0:02:56.5]} 13. Qc2 {[%clk 0:02:14.6]} 13... b5 {[%clk 0:02:42.3]} 14.
Ne3 {[%clk 0:02:07.7]} 14... Rac8 {[%clk 0:02:38.3]} 15. Qe2 {[%clk 0:01:59.4]}
15... Nd4 {[%clk 0:02:36.7]} 16. Nxd4 {[%clk 0:01:53.1]} 16... cxd4 {[%clk
0:02:37.6]} 17. Ng4 {[%clk 0:01:45.1]} 17... Qc2 {[%clk 0:02:34.4]} 18. Qxc2
{[%clk 0:01:32.8]} 18... Rxc2 {[%clk 0:02:33.3]} 19. Ne5 {[%clk 0:01:25.6]}
19... Bd6 {[%clk 0:02:25.8]} 20. Nf3 {[%clk 0:01:18.8]} 20... e5 {[%clk
0:02:25.9]} 21. Bg5 {[%clk 0:01:16]} 21... Rdc8 {[%clk 0:02:19.6]} 22. Bxf6
{[%clk 0:01:15.6]} 22... gxf6 {[%clk 0:02:19.7]} 23. Nh4 {[%clk 0:01:12]} 23...
R8c6 {[%clk 0:02:08.8]} 24. Nf5 {[%clk 0:01:11.6]} 24... Bc8 {[%clk 0:02:07.6]}
25. g4 {[%clk 0:01:09.8]} 25... Bf8 {[%clk 0:02:00.8]} 26. b4 {[%clk 0:01:07.6]}
26... R6c3 {[%clk 0:02:00]} 27. Rfd1 {[%clk 0:01:05.7]} 27... Rxa3 {[%clk
0:01:58.6]} 28. h4 {[%clk 0:00:57.8]} 28... Raa2 {[%clk 0:01:49.7]} 29. Rf1
{[%clk 0:00:54.6]} 29... Rab2 {[%clk 0:01:43.4]} 30. Rxb2 {[%clk 0:00:34]} 30...
Rxb2 {[%clk 0:01:44.3]} 31. f4 {[%clk 0:00:34.2]} 31... Bxb4 {[%clk 0:01:38.7]}
32. fxe5 {[%clk 0:00:32.2]} 32... fxe5 {[%clk 0:01:39.4]} 33. Nh6+ {[%clk
0:00:32.1]} 33... Kg7 {[%clk 0:01:37.4]} 34. Nxf7 {[%clk 0:00:28.8]} 34... Bxg4
{[%clk 0:01:32.5]} 35. Nxe5 {[%clk 0:00:26.4]} 35... Be2 {[%clk 0:01:32.3]} 36.
Rf7+ {[%clk 0:00:25.4]} 36... Kg8 {[%clk 0:01:32.4]} 37. Rxa7 {[%clk 0:00:24.4]}
37... Bd6 {[%clk 0:01:28.6]} 38. Nd7 {[%clk 0:00:18.7]} 38... Bg3 {[%clk
0:01:21.4]} 39. Ra1 {[%clk 0:00:09.8]} 39... Bxd3 {[%clk 0:01:18.4]} 40. e5
{[%clk 0:00:05.7]} 40... Bc4 {[%clk 0:01:15.8]} 41. Nf6+ {[%clk 0:00:04.6]}
41... Kf7 {[%clk 0:01:15.8]} 42. Bd5+ {[%clk 0:00:03.1]} 42... Bxd5 {[%clk
0:01:11.8]} 43. Nxd5 {[%clk 0:00:02.8]} 43... Ke6 {[%clk 0:01:12]} 0-1

[Event "Early-Titled-Tuesday-Blitz-September-26-2023"]
[Site "Chess.com"]
[Date "2023.09.26"]
[Round "4"]
[White "Barbix1"]
[Black "Emp3rador"]
[Result "0-1"]
[WhiteElo "2331"]
[BlackElo "2525"]
[TimeControl "180+1"]
[EndTime "8:39:10 PDT"]
[Termination "Emp3rador won on time"]

1. d4 {[%clk 0:03:00.9]} 1... d5 {[%clk 0:03:00.3]} 2. Nf3 {[%clk 0:03:00.4]}
2... c6 {[%clk 0:03:00.9]} 3. Bf4 {[%clk 0:02:59.5]} 3... Nf6 {[%clk 0:03:01.6]}
4. e3 {[%clk 0:02:59]} 4... Bf5 {[%clk 0:03:01.7]} 5. c4 {[%clk 0:02:56.7]} 5...
Bxb1 {[%clk 0:02:59.9]} 6. Rxb1 {[%clk 0:02:52.4]} 6... e6 {[%clk 0:03:00.3]} 7.
a3 {[%clk 0:02:39.2]} 7... Nbd7 {[%clk 0:02:53.8]} 8. cxd5 {[%clk 0:02:31.4]}
8... cxd5 {[%clk 0:02:34.3]} 9. Bd3 {[%clk 0:02:22.4]} 9... Be7 {[%clk
0:02:32.9]} 10. O-O {[%clk 0:02:20.7]} 10... O-O {[%clk 0:02:32.6]} 11. h3
{[%clk 0:02:07.1]} 11... Rc8 {[%clk 0:02:32.2]} 12. Qa4 {[%clk 0:01:58.1]} 12...
a6 {[%clk 0:02:31.2]} 13. Rfc1 {[%clk 0:01:51]} 13... Nb6 {[%clk 0:02:30]} 14.
Qd1 {[%clk 0:01:45.8]} 14... Nc4 {[%clk 0:02:28.9]} 15. Ne5 {[%clk 0:01:31.4]}
15... b5 {[%clk 0:02:22.1]} 16. a4 {[%clk 0:01:27.4]} 16... Qb6 {[%clk
0:02:14.5]} 17. b3 {[%clk 0:01:13.1]} 17... Nd6 {[%clk 0:02:12.1]} 18. axb5
{[%clk 0:00:51.4]} 18... axb5 {[%clk 0:02:11]} 19. Ng4 {[%clk 0:00:17.6]} 19...
Nde4 {[%clk 0:02:03.6]} 20. Nxf6+ {[%clk 0:00:15.7]} 20... Nxf6 {[%clk
0:02:02.7]} 21. Qe2 {[%clk 0:00:15.6]} 21... b4 {[%clk 0:02:00.8]} 22. Ra1
{[%clk 0:00:13.8]} 22... Ra8 {[%clk 0:01:54.1]} 23. Rxa8 {[%clk 0:00:11.9]}
23... Rxa8 {[%clk 0:01:55]} 24. Bb5 {[%clk 0:00:11.8]} 24... Ne4 {[%clk
0:01:49.7]} 25. Rc6 {[%clk 0:00:11.3]} 25... Qa5 {[%clk 0:01:35]} 26. Bc7 {[%clk
0:00:10.7]} 26... Qa1+ {[%clk 0:01:32.3]} 27. Kh2 {[%clk 0:00:09.8]} 27... Nc3
{[%clk 0:01:29.2]} 28. Qd3 {[%clk 0:00:10]} 28... Qb2 {[%clk 0:01:24.8]} 29. Ra6
{[%clk 0:00:03.1]} 29... Rc8 {[%clk 0:01:18]} 30. Be5 {[%clk 0:00:02.8]} 30...
Qxf2 {[%clk 0:01:12.4]} 31. Bd7 {[%clk 0:00:01.8]} 31... Rd8 {[%clk 0:01:11]}
32. Ra7 {[%clk 0:00:01.4]} 32... Bg5 {[%clk 0:01:06.5]} 33. Bc7 {[%clk
0:00:01.2]} 33... Rf8 {[%clk 0:00:40.8]} 0-1

[Event "Early-Titled-Tuesday-Blitz-September-26-2023"]
[Site "Chess.com"]
[Date "2023.09.26"]
[Round "4"]
[White "Bodhanas"]
[Black "ploxoi"]
[Result "0-1"]
[WhiteElo "2036"]
[BlackElo "2424"]
[TimeControl "180+1"]
[EndTime "8:39:12 PDT"]
[Termination "ploxoi won by checkmate"]

1. d4 {[%clk 0:02:59.7]} 1... d5 {[%clk 0:03:00.4]} 2. Nf3 {[%clk 0:02:59.7]}
2... e6 {[%clk 0:03:01]} 3. Bf4 {[%clk 0:02:59.4]} 3... Nf6 {[%clk 0:02:59.8]}
4. c3 {[%clk 0:02:57.6]} 4... Bd6 {[%clk 0:02:58]} 5. Bxd6 {[%clk 0:02:53.7]}
5... Qxd6 {[%clk 0:02:58.9]} 6. e3 {[%clk 0:02:53.2]} 6... O-O {[%clk
0:02:59.5]} 7. Bd3 {[%clk 0:02:49.1]} 7... c5 {[%clk 0:02:59.6]} 8. O-O {[%clk
0:02:47.2]} 8... Nc6 {[%clk 0:03:00.2]} 9. Nbd2 {[%clk 0:02:46.1]} 9... e5
{[%clk 0:03:00.6]} 10. dxe5 {[%clk 0:02:37.9]} 10... Nxe5 {[%clk 0:03:01.5]} 11.
Nxe5 {[%clk 0:02:36.9]} 11... Qxe5 {[%clk 0:03:02.4]} 12. Re1 {[%clk 0:02:35.2]}
12... Bg4 {[%clk 0:03:01.7]} 13. Nf3 {[%clk 0:02:33]} 13... Qh5 {[%clk
0:02:59.2]} 14. Be2 {[%clk 0:02:30.6]} 14... Qh6 {[%clk 0:02:52.5]} 15. h3
{[%clk 0:02:16.5]} 15... Be6 {[%clk 0:02:52]} 16. Ne5 {[%clk 0:02:05.7]} 16...
Rfd8 {[%clk 0:02:50.1]} 17. Ng4 {[%clk 0:02:04.2]} 17... Bxg4 {[%clk 0:02:46.6]}
18. Bxg4 {[%clk 0:02:03.5]} 18... Qg5 {[%clk 0:02:47.2]} 19. Bf3 {[%clk
0:02:00.8]} 19... h5 {[%clk 0:02:47.5]} 20. Qc2 {[%clk 0:01:57.5]} 20... Rac8
{[%clk 0:02:46.8]} 21. Rad1 {[%clk 0:01:56.1]} 21... b6 {[%clk 0:02:46.3]} 22.
Rd2 {[%clk 0:01:49.9]} 22... h4 {[%clk 0:02:46.4]} 23. Red1 {[%clk 0:01:48.1]}
23... Qe5 {[%clk 0:02:41.4]} 24. c4 {[%clk 0:01:27.7]} 24... d4 {[%clk
0:02:41.1]} 25. exd4 {[%clk 0:01:27.4]} 25... Rxd4 {[%clk 0:02:36.7]} 26. Rxd4
{[%clk 0:01:25.4]} 26... cxd4 {[%clk 0:02:37.6]} 27. b3 {[%clk 0:01:25.2]} 27...
Rd8 {[%clk 0:02:36.1]} 28. Qd3 {[%clk 0:01:23.2]} 28... a5 {[%clk 0:02:36]} 29.
Qe2 {[%clk 0:01:15.3]} 29... Qxe2 {[%clk 0:02:33.6]} 30. Bxe2 {[%clk 0:01:15]}
30... Kf8 {[%clk 0:02:34.3]} 31. Bd3 {[%clk 0:01:13.9]} 31... Ke7 {[%clk
0:02:34.2]} 32. Kf1 {[%clk 0:01:09]} 32... Kd6 {[%clk 0:02:34.2]} 33. Ke2 {[%clk
0:01:07.8]} 33... Nd7 {[%clk 0:02:29.5]} 34. Kd2 {[%clk 0:01:02.2]} 34... Nc5
{[%clk 0:02:29.5]} 35. Re1 {[%clk 0:00:58.8]} 35... g6 {[%clk 0:02:23.1]} 36. f4
{[%clk 0:00:55.3]} 36... Kd7 {[%clk 0:02:14.2]} 37. f5 {[%clk 0:00:51.6]} 37...
g5 {[%clk 0:02:13.7]} 38. Re5 {[%clk 0:00:49.1]} 38... f6 {[%clk 0:02:09.1]} 39.
Re2 {[%clk 0:00:41.9]} 39... Re8 {[%clk 0:02:08]} 40. Rxe8 {[%clk 0:00:39.3]}
40... Kxe8 {[%clk 0:02:08.9]} 41. Bc2 {[%clk 0:00:35]} 41... Ke7 {[%clk
0:02:08.6]} 42. a3 {[%clk 0:00:34.8]} 42... Kd6 {[%clk 0:02:06]} 43. b4 {[%clk
0:00:34.6]} 43... axb4 {[%clk 0:02:06.8]} 44. axb4 {[%clk 0:00:34.9]} 44... Nd7
{[%clk 0:02:07.4]} 45. Kd3 {[%clk 0:00:29.5]} 45... Ke5 {[%clk 0:02:01.1]} 46.
Ba4 {[%clk 0:00:29]} 46... Nb8 {[%clk 0:01:59.4]} 47. c5 {[%clk 0:00:27]} 47...
bxc5 {[%clk 0:01:59.6]} 48. bxc5 {[%clk 0:00:26.7]} 48... Kd5 {[%clk 0:01:58.9]}
49. c6 {[%clk 0:00:22.1]} 49... Nxc6 {[%clk 0:01:51.9]} 50. Bxc6+ {[%clk
0:00:20.7]} 50... Kxc6 {[%clk 0:01:52.8]} 51. Kxd4 {[%clk 0:00:20.4]} 51... Kd6
{[%clk 0:01:53.5]} 52. Ke4 {[%clk 0:00:17.9]} 52... Kc5 {[%clk 0:01:54.1]} 53.
Kf3 {[%clk 0:00:16.6]} 53... Kd4 {[%clk 0:01:54.1]} 54. g3 {[%clk 0:00:16.7]}
54... hxg3 {[%clk 0:01:54.1]} 55. Kxg3 {[%clk 0:00:16.9]} 55... Ke5 {[%clk
0:01:54.5]} 56. Kg4 {[%clk 0:00:14]} 56... Ke4 {[%clk 0:01:55.1]} 57. h4 {[%clk
0:00:14.1]} 57... gxh4 {[%clk 0:01:56]} 58. Kxh4 {[%clk 0:00:14.4]} 58... Kxf5
{[%clk 0:01:56.1]} 59. Kg3 {[%clk 0:00:14.6]} 59... Ke4 {[%clk 0:01:57]} 60. Kf2
{[%clk 0:00:13]} 60... Kf4 {[%clk 0:01:57.9]} 61. Kg2 {[%clk 0:00:12.9]} 61...
Ke3 {[%clk 0:01:57.9]} 62. Kf1 {[%clk 0:00:13.5]} 62... f5 {[%clk 0:01:58.8]}
63. Kg1 {[%clk 0:00:13.3]} 63... f4 {[%clk 0:01:59.7]} 64. Kf1 {[%clk
0:00:13.7]} 64... Kf3 {[%clk 0:02:00.2]} 65. Kg1 {[%clk 0:00:13.9]} 65... Ke2
{[%clk 0:02:00.4]} 66. Kg2 {[%clk 0:00:14.4]} 66... f3+ {[%clk 0:02:01.3]} 67.
Kg3 {[%clk 0:00:14.4]} 67... f2 {[%clk 0:02:02.2]} 68. Kg4 {[%clk 0:00:14.2]}
68... f1=Q {[%clk 0:02:03.1]} 69. Kg5 {[%clk 0:00:13.2]} 69... Qf3 {[%clk
0:02:04]} 70. Kg6 {[%clk 0:00:13.2]} 70... Qf4 {[%clk 0:02:04.6]} 71. Kg7 {[%clk
0:00:13.2]} 71... Qf5 {[%clk 0:02:05.3]} 72. Kh8 {[%clk 0:00:13.2]} 72... Qg5
{[%clk 0:02:05]} 73. Kh7 {[%clk 0:00:13.6]} 73... Ke3 {[%clk 0:02:05.9]} 74. Kh8
{[%clk 0:00:14]} 74... Ke4 {[%clk 0:02:06.8]} 75. Kh7 {[%clk 0:00:14.3]} 75...
Kf5 {[%clk 0:02:07.7]} 76. Kh8 {[%clk 0:00:14.6]} 76... Kf6 {[%clk 0:02:08.6]}
77. Kh7 {[%clk 0:00:14]} 77... Qg7# {[%clk 0:02:09.5]} 0-1

[Event "Early-Titled-Tuesday-Blitz-September-26-2023"]
[Site "Chess.com"]
[Date "2023.09.26"]
[Round "4"]
[White "Lady_Nika"]
[Black "Ermito2020"]
[Result "1/2-1/2"]
[WhiteElo "2481"]
[BlackElo "2661"]
[TimeControl "180+1"]
[EndTime "8:39:14 PDT"]
[Termination "Game drawn by repetition"]

1. e4 {[%clk 0:03:00.9]} 1... e6 {[%clk 0:02:58.9]} 2. d4 {[%clk 0:03:00.9]}
2... d5 {[%clk 0:02:59.6]} 3. exd5 {[%clk 0:03:01.3]} 3... exd5 {[%clk
0:02:59.3]} 4. Nf3 {[%clk 0:03:02.2]} 4... Nc6 {[%clk 0:02:59.3]} 5. c3 {[%clk
0:03:02.2]} 5... Bd6 {[%clk 0:02:58.9]} 6. Bd3 {[%clk 0:03:02.4]} 6... Nge7
{[%clk 0:02:58.7]} 7. O-O {[%clk 0:03:02.7]} 7... Bg4 {[%clk 0:02:59]} 8. Nbd2
{[%clk 0:03:02.2]} 8... Qd7 {[%clk 0:02:58.7]} 9. b4 {[%clk 0:03:02.4]} 9... O-O
{[%clk 0:02:53.2]} 10. a4 {[%clk 0:03:01.7]} 10... a6 {[%clk 0:02:47.8]} 11. Qc2
{[%clk 0:03:01]} 11... Bf5 {[%clk 0:02:44.6]} 12. Ba3 {[%clk 0:03:00.1]} 12...
Bxd3 {[%clk 0:02:41.2]} 13. Qxd3 {[%clk 0:02:59.5]} 13... Ng6 {[%clk 0:02:42.1]}
14. g3 {[%clk 0:02:57.9]} 14... Nce7 {[%clk 0:02:41.2]} 15. c4 {[%clk
0:02:48.2]} 15... dxc4 {[%clk 0:02:36.1]} 16. Nxc4 {[%clk 0:02:47.8]} 16... Qxa4
{[%clk 0:02:29.4]} 17. Nxd6 {[%clk 0:02:30.5]} 17... cxd6 {[%clk 0:02:30.3]} 18.
b5 {[%clk 0:02:30.1]} 18... Qxb5 {[%clk 0:02:22]} 19. Qxb5 {[%clk 0:02:29.4]}
19... axb5 {[%clk 0:02:22.9]} 20. Bxd6 {[%clk 0:02:30.1]} 20... Ra6 {[%clk
0:02:14.2]} 21. Bc5 {[%clk 0:02:20.6]} 21... Rfa8 {[%clk 0:02:11.9]} 22. Rab1
{[%clk 0:02:20.2]} 22... Ra5 {[%clk 0:02:08.3]} 23. Bb6 {[%clk 0:02:17.3]} 23...
Ra3 {[%clk 0:02:07.3]} 24. Ne5 {[%clk 0:02:12.4]} 24... Nxe5 {[%clk 0:01:15.1]}
25. dxe5 {[%clk 0:02:13.3]} 25... Nd5 {[%clk 0:01:12.8]} 26. Rxb5 {[%clk
0:02:09.6]} 26... Nxb6 {[%clk 0:01:01.4]} 27. Rxb6 {[%clk 0:02:09.3]} 27... R8a7
{[%clk 0:01:02.3]} 28. Rfb1 {[%clk 0:02:00.4]} 28... Ra1 {[%clk 0:01:02]} 29.
Rxb7 {[%clk 0:01:53.8]} 29... Rxb1+ {[%clk 0:00:55.8]} 30. Rxb1 {[%clk
0:01:53.4]} 30... g6 {[%clk 0:00:55.6]} 31. Kg2 {[%clk 0:01:53.4]} 31... h5
{[%clk 0:00:53.4]} 32. h3 {[%clk 0:01:51.4]} 32... Ra3 {[%clk 0:00:53]} 33. g4
{[%clk 0:01:50.1]} 33... hxg4 {[%clk 0:00:52.5]} 34. hxg4 {[%clk 0:01:50.1]}
34... g5 {[%clk 0:00:52.7]} 35. Re1 {[%clk 0:01:43.8]} 35... Kg7 {[%clk
0:00:44.4]} 36. e6 {[%clk 0:01:42.8]} 36... fxe6 {[%clk 0:00:44]} 37. Rxe6
{[%clk 0:01:43.7]} 37... Kf7 {[%clk 0:00:44.3]} 38. Re5 {[%clk 0:01:43]} 38...
Kf6 {[%clk 0:00:44.3]} 39. Rf5+ {[%clk 0:01:43.2]} 39... Kg6 {[%clk 0:00:45]}
40. Rb5 {[%clk 0:01:44.1]} 40... Kf6 {[%clk 0:00:44]} 41. f3 {[%clk 0:01:43.9]}
41... Ra4 {[%clk 0:00:42.5]} 42. Kg3 {[%clk 0:01:42.5]} 42... Kg6 {[%clk
0:00:42.1]} 43. Rb6+ {[%clk 0:01:42]} 43... Kg7 {[%clk 0:00:41.2]} 44. Rc6
{[%clk 0:01:42]} 44... Kf7 {[%clk 0:00:40.8]} 45. Rc5 {[%clk 0:01:41]} 45... Kf6
{[%clk 0:00:40.5]} 46. Rf5+ {[%clk 0:01:40.8]} 46... Kg6 {[%clk 0:00:41.1]} 47.
f4 {[%clk 0:01:41.2]} 47... gxf4+ {[%clk 0:00:39.4]} 48. Rxf4 {[%clk 0:01:41.2]}
48... Rxf4 {[%clk 0:00:40.3]} 49. Kxf4 {[%clk 0:01:41.4]} 49... Kf6 {[%clk
0:00:41.2]} 50. g5+ {[%clk 0:01:41.1]} 50... Kg6 {[%clk 0:00:41.6]} 51. Kg4
{[%clk 0:01:41.8]} 51... Kg7 {[%clk 0:00:42.2]} 52. Kf5 {[%clk 0:01:42.1]} 52...
Kf7 {[%clk 0:00:42.7]} 53. g6+ {[%clk 0:01:33.6]} 53... Kg7 {[%clk 0:00:42.8]}
54. Kg5 {[%clk 0:01:34]} 54... Kg8 {[%clk 0:00:42.9]} 55. Kg4 {[%clk 0:01:33.7]}
55... Kg7 {[%clk 0:00:43]} 56. Kh5 {[%clk 0:01:34.2]} 56... Kg8 {[%clk 0:00:43]}
57. Kg5 {[%clk 0:01:33]} 57... Kg7 {[%clk 0:00:43]} 58. Kf5 {[%clk 0:01:33.4]}
58... Kg8 {[%clk 0:00:42.9]} 59. Kf6 {[%clk 0:01:33.9]} 59... Kf8 {[%clk
0:00:43.1]} 60. Ke6 {[%clk 0:01:34.4]} 60... Kg7 {[%clk 0:00:43.2]} 61. Kf5
{[%clk 0:01:34.1]} 61... Kg8 {[%clk 0:00:43.3]} 62. Kf6 {[%clk 0:01:33]} 62...
Kf8 {[%clk 0:00:43.4]} 63. Kg5 {[%clk 0:01:33.3]} 63... Kg7 {[%clk 0:00:43.5]}
64. Kh5 {[%clk 0:01:33.8]} 64... Kg8 {[%clk 0:00:43.1]} 65. Kh6 {[%clk
0:01:34.2]} 65... Kh8 {[%clk 0:00:43.3]} 66. Kg5 {[%clk 0:01:34.7]} 66... Kg7
{[%clk 0:00:44.2]} 1/2-1/2

[Event "Early-Titled-Tuesday-Blitz-September-26-2023"]
[Site "Chess.com"]
[Date "2023.09.26"]
[Round "4"]
[White "Hilary46"]
[Black "Maxterlopez"]
[Result "1-0"]
[WhiteElo "2587"]
[BlackElo "2744"]
[TimeControl "180+1"]
[EndTime "8:39:22 PDT"]
[Termination "Hilary46 won on time"]

1. e4 {[%clk 0:02:58]} 1... e5 {[%clk 0:02:59.7]} 2. Nf3 {[%clk 0:02:57.8]} 2...
Nc6 {[%clk 0:03:00.4]} 3. Bb5 {[%clk 0:02:58.2]} 3... a6 {[%clk 0:03:01]} 4. Ba4
{[%clk 0:02:58.9]} 4... Nge7 {[%clk 0:03:01.7]} 5. Nc3 {[%clk 0:02:58]} 5... g6
{[%clk 0:03:01.6]} 6. d4 {[%clk 0:02:58.5]} 6... exd4 {[%clk 0:03:02.2]} 7. Nd5
{[%clk 0:02:53.7]} 7... Bg7 {[%clk 0:03:02.8]} 8. Bg5 {[%clk 0:02:53.2]} 8... h6
{[%clk 0:03:03.5]} 9. Bf6 {[%clk 0:02:53.3]} 9... Kf8 {[%clk 0:03:02.8]} 10.
Nxd4 {[%clk 0:02:49.1]} 10... Bxf6 {[%clk 0:02:58.8]} 11. Nxf6 {[%clk 0:02:50]}
11... Nf5 {[%clk 0:02:59.3]} 12. exf5 {[%clk 0:01:52.8]} 12... Qxf6 {[%clk
0:02:58.5]} 13. Bxc6 {[%clk 0:01:53.4]} 13... dxc6 {[%clk 0:02:56.3]} 14. fxg6
{[%clk 0:01:53.9]} 14... Rg8 {[%clk 0:02:55.8]} 15. Qd2 {[%clk 0:01:32.3]} 15...
Rxg6 {[%clk 0:02:53.2]} 16. O-O-O {[%clk 0:01:14.9]} 16... Rxg2 {[%clk
0:02:52.2]} 17. Qb4+ {[%clk 0:00:51.4]} 17... Kg7 {[%clk 0:02:47.9]} 18. Rhg1
{[%clk 0:00:48.9]} 18... Rg6 {[%clk 0:00:24]} 19. Qc3 {[%clk 0:00:27.8]} 19...
Bg4 {[%clk 0:00:15.2]} 20. f3 {[%clk 0:00:15.5]} 20... Bh3 {[%clk 0:00:14.4]}
21. f4 {[%clk 0:00:12.6]} 21... Bg4 {[%clk 0:00:10.1]} 22. f5 {[%clk 0:00:09.7]}
22... Rg5 {[%clk 0:00:05.7]} 23. Ne6+ {[%clk 0:00:07]} 23... fxe6 {[%clk
0:00:05.5]} 24. Rd7+ {[%clk 0:00:07.2]} 24... Kg8 {[%clk 0:00:04.5]} 25. Qxf6
{[%clk 0:00:07.6]} 1-0

[Event "Early-Titled-Tuesday-Blitz-September-26-2023"]
[Site "Chess.com"]
[Date "2023.09.26"]
[Round "4"]
[White "draksbg"]
[Black "Fleetw00dMac"]
[Result "0-1"]
[WhiteElo "2657"]
[BlackElo "2483"]
[TimeControl "180+1"]
[EndTime "8:39:30 PDT"]
[Termination "Fleetw00dMac won by resignation"]

1. d4 {[%clk 0:03:00]} 1... Nf6 {[%clk 0:02:58.6]} 2. Nf3 {[%clk 0:02:59.9]}
2... g6 {[%clk 0:02:58.5]} 3. Nbd2 {[%clk 0:02:59.5]} 3... d5 {[%clk 0:02:48.3]}
4. e3 {[%clk 0:02:58.9]} 4... Bg7 {[%clk 0:02:47.8]} 5. b4 {[%clk 0:02:58.3]}
5... O-O {[%clk 0:02:46.1]} 6. Be2 {[%clk 0:02:58.3]} 6... b6 {[%clk 0:02:40.2]}
7. O-O {[%clk 0:02:57.4]} 7... c5 {[%clk 0:02:39.8]} 8. c3 {[%clk 0:02:48.8]}
8... Nbd7 {[%clk 0:02:32.6]} 9. a4 {[%clk 0:02:48.1]} 9... cxb4 {[%clk
0:02:28.5]} 10. cxb4 {[%clk 0:02:46.8]} 10... a6 {[%clk 0:02:28.6]} 11. Bb2
{[%clk 0:02:43.7]} 11... Bb7 {[%clk 0:02:27.9]} 12. Qb3 {[%clk 0:02:43.1]} 12...
Re8 {[%clk 0:02:18.7]} 13. Rac1 {[%clk 0:02:42.5]} 13... e6 {[%clk 0:01:51.8]}
14. h3 {[%clk 0:02:40.9]} 14... Bf8 {[%clk 0:01:50.4]} 15. Ba3 {[%clk
0:02:25.3]} 15... Bd6 {[%clk 0:01:47.5]} 16. Rc3 {[%clk 0:02:24.5]} 16... Qe7
{[%clk 0:01:46.4]} 17. Rfc1 {[%clk 0:02:22.3]} 17... Rec8 {[%clk 0:01:46.1]} 18.
Bd3 {[%clk 0:02:10.8]} 18... Kg7 {[%clk 0:01:44.9]} 19. a5 {[%clk 0:01:56.1]}
19... bxa5 {[%clk 0:01:42.5]} 20. Rb1 {[%clk 0:01:06]} 20... Rxc3 {[%clk
0:01:38.7]} 21. Qxc3 {[%clk 0:01:06.8]} 21... Rc8 {[%clk 0:01:35.6]} 22. Qb3
{[%clk 0:01:02.6]} 22... Ne4 {[%clk 0:01:27.2]} 23. Bxe4 {[%clk 0:00:49]} 23...
dxe4 {[%clk 0:01:26.8]} 24. Ne1 {[%clk 0:00:49]} 24... Bd5 {[%clk 0:01:22.2]}
25. Qa4 {[%clk 0:00:48.8]} 25... axb4 {[%clk 0:01:20.1]} 26. Bxb4 {[%clk
0:00:49.7]} 26... Bxb4 {[%clk 0:01:18.2]} 27. Qxb4 {[%clk 0:00:50.2]} 27... Qxb4
{[%clk 0:01:17.5]} 28. Rxb4 {[%clk 0:00:51.1]} 28... Rc1 {[%clk 0:01:17.6]} 29.
Kf1 {[%clk 0:00:51.7]} 29... a5 {[%clk 0:00:56.6]} 30. Ra4 {[%clk 0:00:51.7]}
30... Nb6 {[%clk 0:00:56.8]} 31. Rxa5 {[%clk 0:00:51]} 31... Nc4 {[%clk
0:00:57]} 32. Nb3 {[%clk 0:00:36.5]} 32... Rb1 {[%clk 0:00:50.8]} 33. Rb5 {[%clk
0:00:34.7]} 33... Rxb3 {[%clk 0:00:50.4]} 34. Rxb3 {[%clk 0:00:35.6]} 34... Nd2+
{[%clk 0:00:50.4]} 35. Ke2 {[%clk 0:00:36.5]} 35... Nxb3 {[%clk 0:00:50.6]} 36.
Nc2 {[%clk 0:00:37.4]} 36... Bc4+ {[%clk 0:00:49.1]} 37. Kd1 {[%clk 0:00:36.9]}
37... Bf1 {[%clk 0:00:49.1]} 38. Ne1 {[%clk 0:00:34.1]} 38... g5 {[%clk
0:00:43.7]} 39. Kc2 {[%clk 0:00:33.5]} 39... Na5 {[%clk 0:00:43.8]} 40. Kc3
{[%clk 0:00:34]} 40... Nc6 {[%clk 0:00:41.7]} 41. Kd2 {[%clk 0:00:32.1]} 41...
Ne7 {[%clk 0:00:41.2]} 42. Kc3 {[%clk 0:00:30.6]} 42... Nf5 {[%clk 0:00:41.1]}
43. Kb4 {[%clk 0:00:29.5]} 43... Nh4 {[%clk 0:00:41.2]} 44. g3 {[%clk
0:00:30.1]} 44... Nf3 {[%clk 0:00:37.3]} 45. Nc2 {[%clk 0:00:30.4]} 45... Bxh3
{[%clk 0:00:35.8]} 46. Kc5 {[%clk 0:00:31.3]} 46... Bg2 {[%clk 0:00:34.6]} 0-1